bitfinex/quotes_ETHUSD_20241106
["timestamp","ask_amount","ask_price","bid_price","bid_amount"]
[1730902297622,3.82219,2616.3,2616.0,0.07644445]
[1730902297924,3.82198,2616.5,2615.9,4.70262501]
[1730902298127,3.82198,2616.5,2615.9,5.58518251]
[1730902298424,3.82206,2616.4,2615.9,1.76250251]
[1730902299005,7.6442,2616.4,2615.9,1.76250251]
[1730902299216,7.6442,2616.4,2615.7,4.12295]
[1730902299217,3.89988003,2616.4,2615.7,4.87825]
[1730902299522,3.82235,2616.2,2615.8,0.0764447]
[1730902299893,7.6448,2616.2,2615.8,0.0764447]
[1730902300098,3.82235,2616.2,2615.9,0.06419437]
[1730902300987,3.82251,2616.1,2615.9,0.06419437]
[1730902301182,3.82263,2616.0,2615.7,0.3]
[1730902301387,3.82257,2616.1,2615.8,0.06211113]
[1730902302308,3.82269,2616.0,2615.8,0.06211113]
[1730902302560,3.82277,2615.9,2615.8,0.06211113]
[1730902302816,3.82263,2616.0,2615.8,0.06211113]
[1730902303000,3.82263,2616.0,2615.7,0.3]
[1730902303001,7.587304,2615.9,2615.7,1.13e-06]
[1730902303200,4.28454,2615.1,2615.0,2.0]
[1730902303511,0.4606,2615.1,2615.0,2.05707738]
[1730902304228,4.28454,2615.1,2615.0,2.05707738]
[1730902304432,4.28454,2615.1,2615.0,2.0]
[1730902304728,7.28454,2615.1,2615.0,2.0]
[1730902305429,7.83454,2615.1,2615.0,2.0]
[1730902305632,9.82959098,2615.1,2615.0,2.0]
[1730902306191,9.27959098,2615.1,2615.0,2.0]
[1730902306425,9.27959098,2615.1,2612.9,3.82704]
[1730902306426,0.01,2614.4,2612.9,3.82704]
[1730902306624,3.82645,2613.4,2612.8,0.7762]
[1730902306864,0.07782003,2613.7,2613.0,3.827]
[1730902307028,3.82603,2613.7,2613.1,0.07652451]
[1730902307223,3.82578,2613.9,2613.2,3.88040107]
[1730902307436,0.07782003,2614.0,2613.4,3.82633]
[1730902307643,4.28608,2614.1,2613.5,0.07651315]
[1730902307960,3.82548,2614.1,2613.5,8.54022749]
[1730902308165,3.82548,2614.1,2613.6,0.85402275]
[1730902308365,3.82548,2614.1,2613.6,0.05348877]
[1730902308932,3.90339003,2614.0,2613.6,0.05348877]
[1730902309330,3.82573,2613.9,2613.6,0.05348877]
[1730902309767,3.82548,2614.1,2613.4,3.90294663]
[1730902309923,3.82548,2614.1,2613.7,0.05341321]
[1730902310265,3.90301003,2614.3,2613.8,0.05333766]
[1730902310500,0.07782003,2614.3,2613.8,0.05333766]
[1730902310771,3.82489,2614.5,2613.8,0.05333766]
[1730902310772,3.90271003,2614.5,2613.9,3.82568]
[1730902311061,7.76323519,2614.6,2614.0,3.82541]
[1730902311263,3.82459,2614.7,2614.1,3.82532]
[1730902311473,3.82429,2614.9,2614.2,3.82519]
[1730902311474,0.07782003,2614.8,2614.2,3.82519]
[1730902311637,3.82438,2614.8,2614.3,3.82501]
[1730902311839,3.90220003,2614.8,2614.3,3.87796997]
[1730902312139,0.07782003,2614.8,2614.3,3.87796997]
[1730902312355,3.82429,2614.9,2614.3,7.70299997]
[1730902312571,3.82402,2615.1,2614.3,7.70299997]
[1730902312572,0.07782003,2615.0,2614.4,3.90133091]
[1730902312767,0.07782003,2615.0,2614.4,3.82484]
[1730902313072,3.82467,2614.6,2614.5,0.05280894]
[1730902313371,3.90249003,2614.6,2614.5,0.05280894]
[1730902313674,0.07782003,2614.6,2613.9,3.82559]
[1730902313914,3.82462,2614.7,2614.1,3.82531]
[1730902314079,4.28493,2614.9,2614.1,3.82531]
[1730902314080,0.07782003,2614.8,2614.3,3.8251]
[1730902314608,0.07782003,2614.8,2614.4,0.05284608]
[1730902314804,3.90233003,2614.8,2614.4,0.05284608]
[1730902314967,0.07782003,2614.8,2614.3,0.8237]
[1730902315166,3.8246,2614.7,2614.3,0.8237]
[1730902315393,3.8246,2614.7,2614.4,0.05288445]
[1730902315704,0.07782003,2614.8,2614.4,0.05288445]
[1730902316066,0.07782003,2614.8,2614.3,4.64872]
[1730902316067,0.07782003,2614.8,2614.3,8.47375]
[1730902316307,0.07782003,2614.8,2614.5,0.05277626]
[1730902316506,0.07782003,2614.8,2614.4,0.0528134]
[1730902316711,3.90183003,2615.1,2614.6,0.05270075]
[1730902317004,3.82442,2614.8,2614.7,0.05262525]
[1730902317209,3.90199003,2615.0,2614.4,3.82493]
[1730902317406,3.90199003,2615.0,2614.5,3.87753092]
[1730902317621,3.90199003,2615.0,2614.5,0.05271092]
[1730902317622,3.82438,2614.8,2614.5,0.05271092]
[1730902317773,3.82438,2614.8,2614.3,4.64871]
[1730902317968,0.07782003,2615.0,2614.3,1.288571]
[1730902318311,4.28449,2615.2,2614.6,3.82467]
[1730902318312,4.36230003,2615.2,2614.6,3.82467]
[1730902318472,3.90170003,2615.2,2614.6,3.82467]
[1730902318673,3.90170003,2615.2,2614.7,3.87704991]
[1730902318874,0.07782003,2615.4,2614.8,0.07648651]
[1730902319180,0.07782003,2615.4,2615.1,3.82394]
[1730902319394,3.8233,2615.6,2615.1,3.82394]
[1730902319395,3.8233,2615.6,2615.2,0.05199371]
[1730902319598,3.82354,2615.4,2615.2,0.05199371]
[1730902319801,3.82354,2615.4,2614.9,4.64504]
[1730902319802,0.07782003,2615.3,2614.9,8.46914]
[1730902319987,3.82354,2615.4,2615.0,0.05223215]
[1730902320303,0.07782003,2615.3,2615.0,0.05223215]
[1730902320507,3.82354,2615.4,2615.0,0.05223215]
[1730902320686,0.07782003,2615.5,2615.0,0.05223215]
[1730902320885,0.07782003,2615.5,2615.2,3.82379]
[1730902321098,3.90118003,2615.5,2615.0,3.82401]
[1730902321305,3.90118003,2615.5,2615.3,0.05200573]
[1730902321556,3.82356,2615.4,2614.7,3.82443]
[1730902321755,3.90155003,2615.3,2614.7,7.64887]
[1730902321945,0.07782003,2615.3,2614.8,3.82438]
[1730902322348,3.82393,2615.2,2614.8,3.90085574]
[1730902322547,0.07782003,2615.3,2614.9,3.82422]
[1730902322721,0.07782003,2615.4,2615.0,3.82408]
[1730902322923,0.85026803,2615.5,2615.1,3.8238]
[1730902323461,0.07782003,2615.5,2615.2,0.8047]
[1730902323655,3.8233,2615.6,2615.2,0.8047]
[1730902323826,0.53842003,2615.8,2615.2,4.70484093]
[1730902324029,0.53842003,2615.8,2615.3,3.82365]
[1730902324359,1.05100243,2615.8,2615.3,3.82365]
[1730902324561,4.87393243,2615.8,2615.2,8.45208]
[1730902324763,1.05100243,2615.8,2615.3,3.82362]
[1730902325071,4.41333243,2615.8,2615.2,4.62835]
[1730902325267,0.59040243,2615.8,2615.3,3.62356]
[1730902325472,4.36105003,2616.0,2615.5,3.82328]
[1730902325674,4.36105003,2616.0,2615.6,3.82321]
[1730902325858,0.07782003,2616.0,2615.6,3.82321]
[1730902326062,0.4606,2616.3,2615.6,0.07646017]
[1730902326372,7.64373,2616.6,2615.7,0.7914]
[1730902326373,0.07782003,2616.5,2615.7,0.7914]
[1730902326526,3.89966003,2616.6,2615.9,3.82277]
[1730902326729,3.82228,2616.3,2615.7,4.61438]
[1730902326930,0.53842003,2616.2,2615.2,0.8099]
[1730902327168,3.82286,2615.9,2615.4,3.82349]
[1730902327333,3.82286,2615.9,2615.2,0.8099]
[1730902327334,0.07782003,2615.8,2615.2,0.8099]
[1730902327670,3.90085003,2615.8,2615.2,0.8099]
[1730902328269,3.82293,2615.8,2615.3,3.90003259]
[1730902328473,3.90028003,2616.2,2615.5,3.82322]
[1730902328642,0.07782003,2616.4,2615.6,3.459662]
[1730902328834,3.82156,2616.8,2616.3,8.46838]
[1730902329031,4.35976003,2616.9,2616.3,8.46831]
[1730902329231,4.35976003,2616.9,2616.4,3.82202]
[1730902329467,0.485976,2616.9,2616.5,3.82187]
[1730902329769,0.5,2617.0,2616.5,3.82187]
[1730902330434,0.5,2617.0,2616.3,4.64619]
[1730902330640,3.82146,2616.8,2616.3,4.64629]
[1730902330967,3.82146,2616.8,2616.1,3.82238]
[1730902330968,3.89946003,2616.7,2616.1,3.82248]
[1730902331169,0.389946,2616.6,2616.1,3.82248]
[1730902331540,4.211786,2616.6,2616.0,4.58052]
[1730902331740,0.389946,2616.6,2616.0,4.58045]
[1730902332373,4.36041003,2616.5,2615.7,0.8187]
[1730902332672,0.07782003,2616.6,2616.0,3.82252]
[1730902332885,3.8219,2616.5,2616.0,3.89896446]
[1730902333176,7.64391,2616.5,2616.0,0.07644446]
[1730902333392,3.82226,2616.3,2615.7,8.46462]
[1730902333559,0.07782003,2616.4,2615.7,8.46462]
[1730902333560,3.82204,2616.4,2615.9,3.82277]
[1730902333747,3.82183,2616.6,2615.9,3.82277]
[1730902333947,3.82183,2616.6,2616.0,3.82262]
[1730902334249,3.8219,2616.5,2616.0,3.82262]
[1730902334462,3.82183,2616.6,2616.1,3.82247]
[1730902334984,3.82183,2616.6,2616.2,0.05064745]
[1730902335284,4.257855,2616.6,2616.2,0.05064745]
[1730902335575,8.079725,2616.6,2616.2,0.05064745]
[1730902335784,3.82197,2616.5,2616.2,0.05064745]
[1730902335954,3.82219,2616.3,2616.2,0.05064745]
[1730902336153,3.90001003,2616.3,2615.7,4.64165]
[1730902336355,3.90001003,2616.3,2616.2,0.05064745]
[1730902336561,4.67221703,2616.3,2615.8,3.82289]
[1730902336772,4.594397,2616.3,2616.2,0.05064745]
[1730902336942,0.436025,2616.6,2616.0,3.82252]
[1730902337145,3.82167,2616.7,2615.8,4.45701781]
[1730902337146,3.82131,2616.9,2616.4,3.82193]
[1730902337400,0.07782003,2616.9,2616.4,3.82193]
[1730902337542,0.5,2617.0,2616.5,3.87202663]
[1730902337543,4.39904003,2617.0,2616.5,3.87202663]
[1730902337743,4.39904003,2617.0,2616.5,0.05016663]
[1730902337981,4.88500403,2617.0,2616.6,3.82174]
[1730902338167,8.70626403,2617.0,2616.5,0.05016663]
[1730902338485,0.985964,2617.0,2616.6,3.87167046]
[1730902338649,0.985964,2617.0,2616.6,0.04997046]
[1730902338650,4.2822,2616.7,2616.6,0.04997046]
[1730902338850,3.82224,2616.3,2615.8,0.8167]
[1730902339175,7.64457,2616.3,2615.9,0.04883047]
[1730902339350,3.82234,2616.2,2615.9,0.04883047]
[1730902339545,3.82234,2616.2,2615.8,0.8167]
[1730902339751,4.586798,2616.2,2615.8,0.8167]
[1730902339976,4.586798,2616.2,2615.9,0.04882721]
[1730902340391,4.586798,2616.2,2615.8,0.8167]
[1730902340767,3.8225,2616.1,2615.9,0.04890863]
[1730902341101,3.82262,2616.0,2615.9,0.04890863]
[1730902341309,3.82262,2616.0,2615.5,3.7869]
[1730902341310,3.82299,2615.8,2615.5,0.7869]
[1730902341802,3.82299,2615.8,2615.3,3.82356]
[1730902343707,3.82299,2615.8,2615.3,7.64713]
[1730902343918,3.82346,2615.5,2615.1,0.0573574]
[1730902344204,3.82351,2615.4,2615.1,0.0573574]
[1730902345605,7.64691,2615.5,2615.1,0.0573574]
[1730902345803,3.82345,2615.5,2615.1,0.0573574]
[1730902346008,3.8236,2615.4,2615.1,0.0573574]
[1730902346501,3.82321,2615.6,2615.1,0.0573574]
[1730902346706,3.82336,2615.5,2615.0,3.82398]
[1730902346871,3.82336,2615.5,2615.0,8.030338]
[1730902347499,3.90103003,2615.7,2615.0,4.206358]
[1730902347878,3.8233,2615.6,2615.0,4.206358]
[1730902348083,3.8233,2615.6,2615.0,8.030338]
[1730902348303,0.07782003,2615.7,2615.0,3.82396]
[1730902348610,3.82343,2615.5,2615.0,3.82396]
[1730902348975,3.82351,2615.4,2614.9,3.82415]
[1730902349173,3.8237,2615.3,2614.8,3.82427]
[1730902349378,0.07782003,2615.2,2614.7,3.82446]
[1730902349619,3.90168003,2615.2,2614.7,3.82446]
[1730902349906,3.90168003,2615.2,2614.8,0.05039032]
[1730902350114,0.07782003,2615.2,2614.8,7.69906032]
[1730902350289,3.8238,2615.2,2614.8,3.87469032]
[1730902351203,3.8238,2615.2,2614.8,0.05039032]
[1730902351443,3.82366,2615.3,2614.8,0.05039032]
[1730902351717,3.82366,2615.3,2614.9,0.05031483]
[1730902351888,3.82346,2615.5,2615.0,3.82407]
[1730902352070,3.82346,2615.5,2615.0,3.82402]
[1730902352273,3.82346,2615.5,2615.1,0.05016386]
[1730902352471,3.90099003,2615.7,2615.1,0.12663663]
[1730902352720,3.82316,2615.7,2615.2,4.63012]
[1730902353017,7.30263519,2616.3,2615.3,0.07646656]
[1730902353018,0.07782003,2616.0,2615.3,0.07646656]
[1730902353236,3.82266,2616.0,2615.5,3.8233]
[1730902353524,7.30263519,2616.3,2615.5,3.8233]
[1730902353525,7.30263519,2616.3,2615.9,3.82275]
[1730902353682,1.49467052,2616.3,2616.0,3.82261]
[1730902353882,0.07782003,2616.4,2616.1,3.8224]
[1730902354088,0.53842003,2616.5,2616.1,3.82239]
[1730902354316,0.4606,2616.5,2616.2,0.049347]
[1730902354517,0.4606,2616.5,2616.3,3.82208]
[1730902354892,0.4606,2616.5,2616.4,0.04906258]
[1730902355507,0.9606,2617.0,2616.4,0.12550402]
[1730902355807,0.9606,2617.0,2616.8,3.82137]
[1730902355808,0.5,2617.0,2616.8,3.82137]
[1730902356131,0.5,2617.0,2616.9,3.86817513]
[1730902358784,0.5,2617.0,2616.9,0.04686513]
[1730902359218,0.5,2617.0,2616.9,3.86817513]
[1730902359610,0.5,2617.0,2616.9,0.04686513]
[1730902363620,0.5,2617.0,2616.8,3.82145]
[1730902363801,0.5,2617.0,2616.9,0.0451384]
[1730902364832,0.5,2617.0,2616.9,3.8664484]
[1730902364994,0.5,2617.0,2616.9,4.71164803]
[1730902365198,0.5,2617.0,2616.9,5.46804803]
[1730902365596,0.5,2617.0,2616.9,5.39163024]
[1730902369838,0.5,2617.0,2616.9,4.6228484]
[1730902370614,0.5,2617.0,2616.9,3.8664484]
[1730902373506,0.4606,2618.0,2617.8,3.81993]
[1730902373807,0.4606,2618.0,2617.8,3.81991]
[1730902374148,0.4606,2618.0,2617.9,3.86337918]
[1730902374649,0.4606,2618.2,2618.1,3.81956]
[1730902374847,0.53842003,2618.5,2618.2,3.81934]
[1730902375344,0.4606,2618.5,2618.3,3.8625864]
[1730902375635,3.81846,2618.9,2618.3,3.8625864]
[1730902375636,3.81861,2618.8,2618.3,3.8625864]
[1730902375941,0.4606,2618.8,2618.4,3.81903]
[1730902376146,0.4606,2618.8,2618.5,3.81895]
[1730902376302,0.4606,2618.8,2618.5,3.86224435]
[1730902377103,0.4606,2618.8,2618.5,0.04329435]
[1730902377441,0.07782003,2618.7,2618.5,0.04329435]
[1730902377869,0.07782003,2618.7,2618.5,3.86220435]
[1730902378043,0.10782003,2619.0,2618.6,3.81883]
[1730902378381,0.10782003,2619.0,2618.8,3.81845]
[1730902378382,0.03,2619.0,2618.8,3.81845]
[1730902378733,0.03,2619.0,2618.9,0.04242932]
[1730902379673,0.03,2619.0,2618.9,3.86081932]
[1730902380477,0.4606,2619.9,2619.8,3.81708]
[1730902380629,0.4606,2619.9,2619.0,7.6365]
[1730902380630,3.81718,2619.8,2619.1,4.45690875]
[1730902380976,3.81732,2619.7,2619.1,3.81809]
[1730902381131,3.81732,2619.7,2618.9,4.63205]
[1730902381132,3.81742,2619.6,2618.9,4.63205]
[1730902381336,3.89543003,2619.5,2618.9,4.63205]
[1730902381644,4.207273,2619.4,2618.9,4.63205]
[1730902381958,0.07782003,2619.3,2619.0,3.81815]
[1730902382155,0.389543,2619.4,2619.0,3.81815]
[1730902382368,0.4606,2619.4,2619.1,3.81809]
[1730902382677,0.07782003,2620.2,2619.2,3.89430468]
[1730902382831,0.53842003,2620.2,2619.7,3.81714]
[1730902383254,4.35502003,2620.2,2619.5,0.7868]
[1730902383577,4.35502003,2620.2,2619.6,3.8173]
[1730902383770,1.35555103,2620.2,2619.8,3.81707]
[1730902384673,3.81665,2620.1,2619.6,3.81728]
[1730902385170,0.07782003,2620.0,2619.5,4.60429]
[1730902385387,0.07782003,2620.0,2619.4,3.81754]
[1730902385597,3.89475003,2620.0,2619.4,3.81754]
[1730902385757,4.79366313,2620.0,2619.4,3.81754]
[1730902386074,3.81711,2619.8,2619.3,3.81778]
[1730902386282,0.07782003,2619.7,2619.3,3.81778]
[1730902386505,0.07782003,2619.7,2619.2,4.61942]
[1730902386787,0.07782003,2619.7,2619.2,8.4373]
[1730902387285,0.07782003,2619.7,2619.2,4.61942]
[1730902387489,0.07782003,2620.1,2619.7,3.81715]
[1730902387691,0.4606,2620.2,2619.8,3.81707]
[1730902387855,0.07782003,2620.4,2619.8,4.62147]
[1730902388389,3.81665,2620.1,2619.6,3.81727]
[1730902388697,4.579955,2620.1,2619.6,7.63457]
[1730902388860,5.040555,2620.1,2619.6,3.81727]
[1730902389991,1.223905,2620.1,2619.6,7.63456]
[1730902390198,1.223905,2620.1,2619.6,3.81727]
[1730902390408,5.040605,2620.1,2619.6,3.81727]
[1730902390912,5.11842503,2620.1,2619.6,3.81727]
[1730902391263,5.11842503,2620.1,2619.5,0.7893]
[1730902391264,3.81688,2620.0,2619.5,0.7893]
[1730902391621,3.81724,2619.7,2619.5,0.7893]
[1730902393177,3.81724,2619.7,2619.3,3.81779]
[1730902393524,3.81724,2619.7,2619.3,4.60529]
[1730902394784,3.81724,2619.7,2619.3,0.7875]
[1730902394992,3.81724,2619.7,2619.4,0.04126626]
[1730902395813,0.84124703,2619.7,2619.4,0.04126626]
[1730902396104,0.84124703,2619.7,2619.0,0.7645]
[1730902396105,3.81695,2619.9,2619.3,3.8178]
[1730902396467,3.81695,2619.9,2619.5,0.04119104]
[1730902396665,0.07782003,2619.9,2619.4,0.04126626]
[1730902396911,3.8171,2619.8,2619.6,0.04111582]
[1730902397108,7.63427,2619.8,2619.5,0.04119104]
[1730902397418,3.81737,2619.6,2619.0,5.14506974]
[1730902397868,3.81754,2619.5,2619.0,0.7645]
[1730902398232,0.07782003,2619.8,2619.0,0.7645]
[1730902398509,0.07782003,2619.8,2618.5,0.20135636]
[1730902398510,0.53842003,2620.1,2619.5,0.7877]
[1730902398811,0.4606,2620.1,2619.6,3.89368988]
[1730902399216,0.4606,2620.1,2619.3,4.38056974]
[1730902399217,3.81679,2620.0,2619.2,3.81781]
[1730902399511,0.07782003,2620.0,2619.5,3.81751]
[1730902399713,4.35507003,2620.1,2619.4,3.81766]
[1730902400533,4.35507003,2620.1,2619.5,3.89381896]
[1730902400891,4.35507003,2620.1,2619.5,3.81748]
[1730902403507,0.4606,2620.1,2619.6,3.8935768]
[1730902404331,4.27733,2620.1,2619.1,3.7877]
[1730902404537,3.81689,2620.0,2619.4,3.81766]
[1730902404834,3.81689,2620.0,2619.4,7.63523]
[1730902405129,0.4606,2620.1,2619.5,3.81751]
[1730902405331,0.53842003,2620.1,2619.6,3.81727]
[1730902406122,4.35508003,2620.1,2619.5,3.81751]
[1730902406338,8.17180003,2620.1,2619.5,3.81751]
[1730902406505,5.09444,2620.1,2619.3,3.81772]
[1730902406706,3.81724,2619.7,2619.1,7.60569]
[1730902407011,3.81724,2619.7,2619.1,11.42371]
[1730902407207,3.81724,2619.7,2619.1,7.60569]
[1730902407422,3.8175,2619.6,2619.1,0.7877]
[1730902407731,3.81724,2619.7,2619.1,3.81797]
[1730902407732,0.771199,2619.7,2619.1,3.81797]
[1730902407956,9.01448974,2620.1,2619.5,3.81749]
[1730902407957,5.09452,2620.1,2619.5,3.81749]
[1730902408158,1.27778,2620.1,2619.6,3.89360827]
[1730902408313,1.27778,2620.1,2619.6,3.89369827]
[1730902408821,4.27666,2620.5,2619.9,3.81693]
[1730902409126,4.27666,2620.5,2620.0,0.07632809]
[1730902409328,3.81637,2620.3,2619.8,0.7708]
[1730902409517,0.817085,2620.3,2619.9,3.81693]
[1730902410018,0.817085,2620.3,2620.0,0.04071359]
[1730902410452,0.817085,2620.3,2619.8,4.58788]
[1730902410759,0.817085,2620.3,2620.1,0.04049927]
[1730902411046,0.817085,2620.3,2619.8,4.58788]
[1730902411047,0.817085,2620.3,2619.8,4.58785]
[1730902411258,0.817085,2620.3,2620.2,0.04042408]
[1730902411408,0.07782003,2620.4,2619.8,0.7708]
[1730902411616,4.27629,2620.8,2620.2,3.85683074]
[1730902411836,4.27629,2620.8,2620.2,3.81641]
[1730902412042,4.27629,2620.8,2620.3,0.03987672]
[1730902412215,0.4606,2620.8,2620.3,3.85622672]
[1730902413550,0.4606,2620.8,2620.4,0.07631489]
[1730902413718,0.07782003,2620.9,2620.4,3.93263046]
[1730902414259,4.27603,2621.0,2620.4,3.93263046]
[1730902414463,0.07782003,2620.9,2620.4,0.04013557]
[1730902414752,3.89340003,2620.9,2620.4,0.04013557]
[1730902415471,0.07782003,2620.9,2620.4,3.85624557]
[1730902416237,0.07782003,2620.9,2620.4,0.04013557]
[1730902416238,3.89338003,2620.9,2620.4,0.04013557]
[1730902416543,3.89338003,2620.9,2620.4,3.85631557]
[1730902416889,0.4606,2621.0,2620.5,3.81599]
[1730902417040,0.4606,2621.0,2620.5,3.81598]
[1730902417365,0.4606,2621.0,2620.6,3.8555859]
[1730902417881,3.89286003,2621.2,2620.6,3.8555859]
[1730902421061,0.07782003,2621.2,2620.7,3.81572]
[1730902421262,0.07782003,2621.2,2620.6,3.8555859]
[1730902421453,0.07782003,2621.2,2620.8,3.85535567]
[1730902421662,0.07782003,2621.2,2620.9,3.81541]
[1730902421872,0.07782003,2621.2,2620.9,3.85509053]
[1730902422270,0.07782003,2621.5,2621.1,3.81516]
[1730902422585,0.07782003,2621.5,2621.2,0.03878339]
[1730902424581,3.89245003,2621.5,2621.0,4.5704]
[1730902424792,3.81482,2621.4,2621.3,0.0388416]
[1730902424986,4.204065,2621.4,2621.3,0.0388416]
[1730902425282,0.389245,2621.4,2620.6,4.62751]
[1730902425579,3.81535,2621.0,2620.7,0.03789157]
[1730902425952,3.81535,2621.0,2620.5,3.81606]
[1730902426152,3.81535,2621.0,2620.8,0.03784218]
[1730902426387,5.02423898,2621.0,2620.5,3.81606]
[1730902426631,5.02423898,2621.0,2620.9,0.03776704]
[1730902426893,5.02423898,2621.0,2620.5,3.81596]
[1730902427043,5.02423898,2621.0,2620.9,0.03776704]
[1730902427243,5.02423898,2621.0,2620.5,3.81596]
[1730902427469,5.02423898,2621.0,2620.9,0.03776704]
[1730902427652,5.02423898,2621.0,2620.5,3.81596]
[1730902427864,5.02423898,2621.0,2620.9,0.03776704]
[1730902428065,3.81558,2620.9,2620.4,3.81614]
[1730902428267,0.07782003,2620.8,2620.3,0.8117]
[1730902428489,3.81591,2620.7,2620.2,3.81649]
[1730902428697,3.89373003,2620.7,2620.2,3.81649]
[1730902428996,3.89373003,2620.7,2620.2,7.63289]
[1730902429292,3.89373003,2620.7,2620.2,3.8164]
[1730902429595,3.81591,2620.7,2620.2,3.8164]
[1730902429759,3.81592,2620.6,2620.2,3.8164]
[1730902432271,3.81592,2620.6,2620.1,3.81662]
[1730902432771,3.81592,2620.6,2620.1,3.81656]
[1730902432990,3.89360003,2620.7,2620.2,3.81648]
[1730902433513,0.07782003,2620.7,2620.3,3.81628]
[1730902433812,3.89361003,2620.7,2620.2,4.661604]
[1730902434016,3.81524,2621.1,2620.6,3.8159]
[1730902434308,3.89287003,2621.2,2620.7,3.81565]
[1730902434968,3.81519,2621.1,2620.5,3.81594]
[1730902435194,3.81519,2621.1,2620.5,4.279989]
[1730902435505,3.89322003,2621.0,2620.4,7.63222]
[1730902435705,3.81549,2620.9,2620.3,4.64074]
[1730902435904,3.816,2620.6,2620.3,0.8244]
[1730902436105,4.27644,2620.7,2620.2,3.81647]
[1730902436315,0.4606,2620.7,2620.0,0.7607]
[1730902436613,0.4606,2620.7,2620.2,3.8165]
[1730902436909,4.27646,2620.7,2620.1,3.81653]
[1730902437113,3.81593,2620.6,2620.1,3.81653]
[1730902437997,3.81593,2620.6,2620.0,4.57739]
[1730902438195,3.81593,2620.6,2620.1,3.81663]
[1730902438496,7.63193,2620.6,2620.1,3.81663]
[1730902438694,3.81593,2620.6,2620.1,3.81663]
[1730902438910,3.81527,2621.1,2620.6,4.5728]
[1730902439219,4.196797,2621.1,2620.6,4.5728]
[1730902439791,0.381527,2621.1,2620.7,3.81575]
[1730902439994,3.81475,2621.4,2620.8,3.8156]
[1730902440210,3.81511,2621.2,2620.8,0.03801002]
[1730902440384,0.07782003,2621.1,2620.6,4.57281]
[1730902440587,0.07782003,2621.1,2620.9,0.03793487]
[1730902440895,0.07782003,2621.1,2620.7,3.81575]
[1730902441124,0.07782003,2621.1,2621.0,0.03785973]
[1730902441284,0.07782003,2621.1,2620.7,3.81575]
[1730902441659,3.89301003,2621.1,2620.6,4.57291]
[1730902441795,0.07782003,2621.1,2620.8,0.03801002]
[1730902441999,0.07782003,2621.3,2620.9,3.81548]
[1730902442314,3.89273003,2621.3,2620.9,0.03793487]
[1730902442516,0.07782003,2621.3,2620.9,3.85340487]
[1730902442695,3.81485,2621.4,2621.0,3.8153]
[1730902442883,7.70696003,2621.6,2621.1,3.8151]
[1730902443082,3.81463,2621.5,2621.1,3.8528846]
[1730902443297,1.84701952,2621.6,2621.2,3.81503]
[1730902443579,1.92483955,2621.6,2621.3,0.03763434]
[1730902443785,0.07782003,2621.6,2621.3,3.81488]
[1730902443987,0.07782003,2621.6,2621.0,3.81521]
[1730902444278,0.07782003,2621.6,2621.2,3.81503]
[1730902444479,0.07782003,2621.6,2621.2,7.63006]
[1730902444690,0.07782003,2621.6,2621.4,0.03755923]
[1730902444906,0.07782003,2621.6,2621.3,0.03763434]
[1730902445120,0.07782003,2621.6,2621.5,0.03748412]
[1730902445326,0.07782003,2621.6,2621.4,0.03755923]
[1730902445532,0.07782003,2621.6,2621.5,0.03748412]
[1730902445896,0.07782003,2621.6,2621.2,3.81503]
[1730902446138,0.07782003,2621.6,2621.5,0.03730015]
[1730902446299,0.07782003,2621.6,2621.2,3.81503]
[1730902446645,3.89228003,2621.6,2621.2,3.81503]
[1730902446931,3.89228003,2621.6,2621.3,0.03745038]
[1730902447231,3.89228003,2621.6,2621.2,3.81503]
[1730902447430,3.89228003,2621.6,2621.4,3.85212526]
[1730902447431,0.07782003,2621.6,2621.4,3.85212526]
[1730902447634,3.81393,2622.0,2621.5,0.8281]
[1730902447859,0.07782003,2621.9,2621.6,3.81436]
[1730902448001,0.07782003,2621.9,2621.6,3.85155922]
[1730902448344,0.07782003,2622.1,2621.6,3.85155922]
[1730902448494,0.07782003,2622.1,2621.7,3.81431]
[1730902448900,0.07782003,2622.1,2621.8,0.03704903]
[1730902449435,0.07782003,2622.1,2621.9,0.03697394]
[1730902449641,0.53842003,2622.3,2621.8,3.81404]
[1730902449808,0.02,2623.0,2622.1,3.81371]
[1730902449809,4.4011086,2622.6,2622.1,3.81371]
[1730902450132,0.5880886,2622.6,2622.2,7.62699]
[1730902450342,0.07782003,2622.5,2622.2,0.03666804]
[1730902450918,0.07782003,2622.5,2622.0,4.60626]
[1730902451119,3.81331,2622.4,2622.3,0.03653167]
[1730902451323,0.07782003,2622.5,2621.7,0.8091]
[1730902451324,3.81381,2622.1,2621.7,0.8091]
[1730902451540,0.4606,2622.5,2621.4,3.81466]
[1730902451541,4.35239003,2622.0,2621.5,3.81459]
[1730902451914,8.16638003,2622.0,2621.5,3.81459]
[1730902452120,0.07782003,2621.9,2621.5,3.81459]
[1730902452319,3.89191003,2621.9,2621.4,4.62384]
[1730902452829,0.07782003,2621.9,2621.5,3.81453]
[1730902453032,0.07782003,2621.9,2621.6,3.81444]
[1730902453648,0.07782003,2621.9,2621.5,0.462363]
[1730902453847,0.07782003,2621.9,2621.5,4.276963]
[1730902454952,0.07782003,2621.9,2621.6,0.03560969]
[1730902456318,0.07782003,2621.9,2621.6,3.85005969]
[1730902456522,0.4606,2622.0,2621.6,3.85005969]
[1730902456835,0.07782003,2622.1,2621.7,3.81419]
[1730902457027,0.07782003,2622.1,2621.8,3.81414]
[1730902457230,0.4606,2622.3,2621.8,0.42042696]
[1730902457529,4.35158003,2622.5,2622.0,3.81379]
[1730902457728,3.81332,2622.4,2622.0,3.81379]
[1730902457955,0.07782003,2622.3,2622.1,0.03523425]
[1730902459656,0.53842003,2622.5,2622.1,3.84894425]
[1730902461371,0.07782003,2622.5,2622.2,3.81357]
[1730902461765,0.07782003,2622.5,2622.3,0.03505512]
[1730902462263,0.07782003,2622.5,2622.4,0.03498006]
[1730902462461,0.07782003,2622.5,2622.0,7.62753]
[1730902462651,3.89098003,2622.5,2622.4,0.03498006]
[1730902462856,0.07782003,2622.5,2622.1,3.81372]
[1730902463025,0.07782003,2622.5,2622.4,0.03498006]
[1730902463221,0.07782003,2622.5,2622.1,3.81372]